fUST/lending_fUST_20250203
["ID","MTS","AMOUNT","RATE_DAILY","PERIOD"]
[351437594,1738583433460,-651.99,0.00016438,2]
[351437595,1738583433471,-161.2646572,0.00016438,2]
[351437596,1738583433482,-500.0,0.00016438,2]
[351437597,1738583433495,-500.0,0.00016438,2]
[351437598,1738583433506,-500.0,0.00016438,2]
[351437599,1738583433517,-500.0,0.00016438,2]
[351437600,1738583433527,-500.0,0.00016438,2]
[351437601,1738583433538,-500.0,0.00016438,2]
[351437602,1738583433549,-500.0,0.00016438,2]
[351437603,1738583433560,-500.0,0.00016438,2]
[351437604,1738583433571,-500.0,0.00016438,2]
[351437605,1738583433581,-8864.79404006,0.00016491,2]
[351437606,1738583433593,-500.0,0.00016573,2]
[351437607,1738583433605,-500.0,0.00016573,2]
[351437608,1738583433616,-566.64,0.00016574,2]
[351437609,1738583433627,-1266.53771467,0.00016575,2]
[351437610,1738583433645,-52.67228533,0.00016575,2]
[351437611,1738583433656,-385.04686148,0.00016575,2]
[351437612,1738583433674,-114.95313852,0.00016575,2]
[351437613,1738583433685,-607.64623148,0.00016575,2]
[351437614,1738583433699,-1222.57376852,0.00016575,2]
[351437615,1738583433709,-500.0,0.00016575,2]
[351437616,1738583433719,-539.76,0.00016575,2]
[351437617,1738583433731,-500.0,0.00016575,2]
[351437618,1738583433743,-1064.57,0.00016575,2]
[351437619,1738583433753,-500.0,0.00016575,2]
[351437620,1738583433763,-4523.64,0.00016575,2]
[351437621,1738583433774,-500.0,0.00016575,2]
[351437622,1738583433785,-537.59,0.00016575,2]
[351437623,1738583433795,-500.0,0.00016575,2]
[351437624,1738583433806,-500.0,0.00016575,2]
[351437625,1738583433818,-1648.04,0.00016575,2]
[351437626,1738583433828,-500.0,0.00016575,2]
[351437627,1738583433838,-500.0,0.00016575,2]
[351437628,1738583433850,-500.0,0.00016575,2]
[351437629,1738583433861,-500.0,0.00016575,2]
[351437630,1738583433872,-350.57,0.00016575,2]
[351437631,1738583433882,-651.99,0.00016575,2]
[351437632,1738583433895,-500.0,0.00016575,2]
[351437633,1738583433905,-500.0,0.00016575,2]
[351437634,1738583433916,-1319.21,0.00016712,2]
[351437635,1738583433926,-500.0,0.00016712,2]
[351437636,1738583433936,-1830.22,0.00016712,2]
[351437637,1738583433947,-394.6958273,0.00016712,2]
[351437638,1738583433961,-105.3041727,0.00016712,2]
[351437639,1738583433972,-412.6420575,0.00016712,2]
[351437640,1738583433997,-127.1179425,0.00016712,2]
[351437641,1738583434008,-260.74419117,0.00016712,2]
[351437642,1738583434021,-239.25580883,0.00016712,2]
[351437643,1738583434033,-1064.57,0.00016712,2]
[351437644,1738583434045,-500.0,0.00016712,2]
[351437645,1738583434055,-4523.64,0.00016712,2]
[351437646,1738583434066,-500.0,0.00016712,2]
[351437647,1738583434077,-537.59,0.00016712,2]
[351437648,1738583434087,-247.7784974,0.00016712,2]
[351437649,1738583434098,-500.0,0.00016712,2]
[351437650,1738583434110,-1648.04,0.00016712,2]
[351437651,1738583434121,-500.0,0.00016712,2]
[351437652,1738583434131,-500.0,0.00016712,2]
[351437653,1738583434143,-500.0,0.00016712,2]
[351437654,1738583434154,-651.99,0.00016712,2]
[351437655,1738583434170,-500.0,0.00016712,2]
[351437656,1738583434181,-500.0,0.00016712,2]
[351437657,1738583434193,-22183.49793134,0.00016738,4]
[351437658,1738583434204,-500.0,0.00016767,2]
[351437659,1738583434216,-1000.0,0.00016778,2]
[351437660,1738583434227,-500.0,0.00016845,2]
[351437661,1738583434238,-500.0,0.00016845,2]
[351437662,1738583434250,-500.0,0.00016845,2]
[351437663,1738583434261,-500.0,0.00016845,2]
[351437664,1738583434271,-500.0,0.00016845,2]
[351437665,1738583434282,-500.0,0.00016845,2]
[351437666,1738583434294,-500.0,0.00016845,2]
[351437667,1738583434305,-500.0,0.00016845,2]
[351437668,1738583434316,-500.0,0.00016845,2]
[351437669,1738583434327,-500.0,0.00016845,2]
[351437670,1738583434337,-500.0,0.00016845,2]
[351437671,1738583434348,-378.75588992,0.00016845,2]
[351437672,1738583434359,-157.75598096,0.00016845,2]
[351437673,1738583434372,-342.24401904,0.00016845,2]
[351437674,1738583434385,-172.32805341,0.00016845,2]
[351437675,1738583434398,-327.67194659,0.00016845,2]
[351437676,1738583434408,-200.62345607,0.00016845,2]
[351437677,1738583434421,-299.37654393,0.00016845,2]
[351437678,1738583434431,-500.0,0.00016845,2]
[351437679,1738583434441,-39.91404448,0.00016845,2]
[351437680,1738583434460,-460.08595552,0.00016845,2]
[351437681,1738583434471,-39.91404448,0.00016845,2]
[351437736,1738583438177,-268.735003,0.00016438,2]
[351437740,1738583438231,-308.9182645,0.00016438,2]
[351437741,1738583438241,-22.0967325,0.00016845,2]
[351437743,1738583438285,-437.98922302,0.00016845,2]
[351437744,1738583438295,-500.0,0.00016845,2]
[351437745,1738583438304,-500.0,0.00016845,2]
[351437746,1738583438313,-163.07646771,0.00016845,2]
[351437757,1738583440377,-336.92353229,0.00016845,2]
[351437758,1738583440386,-432.29903839,0.00016849,2]
[351437801,1738583446371,-1427.23342519,0.00016438,2]
[351437933,1738583882204,341.22,0.00010959,2]
[351437934,1738583903222,775.52,0.00010959,2]
[351437935,1738584068992,184.735084,0.00013699,2]
[351437939,1738584189930,400.0,0.00013973,2]
[351437940,1738584374852,898.31202326,0.00015011,2]
[351437976,1738584549144,-729.6246614,0.00015241,2]
[351437977,1738584549167,-388.5987275,0.00015243,2]
[351437978,1738584549188,-869.748691,0.00015261,2]
[351437979,1738584549208,-711.22932305,0.00015338,2]
[351437980,1738584549229,-1383.5612328,0.00015438,2]
[351437981,1738584623548,50.61917353,0.00015437,2]
[351438090,1738584632627,-115.38082647,0.00015437,2]
[351438092,1738584632637,-404.14167894,0.00016338,2]
[351438094,1738584632649,-97.0696368,0.00016338,2]
[351438096,1738584632658,-287.32821101,0.00016428,2]
[351438098,1738584632668,-152.5,0.00016428,2]
[351438100,1738584632677,-152.5,0.00016428,2]
[351438102,1738584632687,-152.5,0.00016428,2]
[351438104,1738584632696,-152.5,0.00016428,2]
[351438106,1738584632705,-152.5,0.00016428,2]
[351438108,1738584632715,-152.5,0.00016428,2]
[351438110,1738584632725,-300.0,0.00016436,2]
[351438112,1738584632735,-839.51433284,0.00016437,2]
[351438114,1738584632745,-500.0,0.00016437,2]
[351438116,1738584632755,-500.0,0.00016437,2]
[351438118,1738584632764,-399.39812613,0.00016437,2]
[351438120,1738584632773,-194.80077763,0.00016437,2]
[351438122,1738584632783,-500.0,0.00016437,2]
[351438124,1738584632792,-500.0,0.00016437,2]
[351438126,1738584632801,-500.0,0.00016437,2]
[351438128,1738584632812,-373.87921243,0.00016437,2]
[351438130,1738584632822,-462.56979064,0.00016437,2]
[351438132,1738584632831,-500.0,0.00016437,2]
[351438134,1738584632840,-500.0,0.00016437,2]
[351438136,1738584632849,-500.0,0.00016437,2]
[351438139,1738584632858,-505.24640775,0.00016437,2]
[351438140,1738584632868,-218.13967327,0.00016437,2]
[351438143,1738584632877,-360.72858066,0.00016437,2]
[351438145,1738584632887,-500.0,0.00016437,2]
[351438147,1738584632897,-500.0,0.00016437,2]
[351438149,1738584632906,-500.0,0.00016437,2]
[351438151,1738584632916,-500.0,0.00016437,2]
[351438153,1738584632925,-500.0,0.00016437,2]
[351438155,1738584632935,-500.0,0.00016437,2]
[351438157,1738584632945,-500.0,0.00016437,2]
[351438159,1738584632955,-423.06022298,0.00016437,2]
[351438161,1738584632964,-500.0,0.00016437,2]
[351438163,1738584632974,-500.0,0.00016437,2]
[351438165,1738584632983,-500.0,0.00016437,2]
[351438167,1738584632993,-500.0,0.00016437,2]
[351438169,1738584633002,-641.69547841,0.00016437,2]
[351438171,1738584633011,-166.18496616,0.00016437,2]
[351438173,1738584633021,-194.71853898,0.00016437,2]
[351438175,1738584633031,-214.93951282,0.00016437,2]
[351438177,1738584633041,-358.83646619,0.00016437,2]
[351438179,1738584633050,-500.0,0.00016437,2]
[351438181,1738584633060,-500.0,0.00016438,2]
[351438183,1738584633070,-500.0,0.00016438,2]
[351438185,1738584633080,-500.0,0.00016438,2]
[351438187,1738584633089,-501.41662493,0.00016438,2]
[351438188,1738584633100,-503.58967395,0.00016438,2]
[351438189,1738584633109,-500.0,0.00016438,2]
[351438190,1738584633123,-500.0,0.00016438,2]
[351438191,1738584633133,-500.0,0.00016438,2]
[351438192,1738584633143,-501.41277902,0.00016438,2]
[351438193,1738584633153,-500.0,0.00016438,2]
[351438194,1738584633163,-500.0,0.00016438,2]
[351438195,1738584633173,-500.0,0.00016438,2]
[351438196,1738584633183,-500.0,0.00016438,2]
[351438197,1738584633193,-502.11131472,0.00016438,2]
[351438198,1738584633203,-500.0,0.00016438,2]
[351438199,1738584633213,-500.0,0.00016438,2]
[351438200,1738584633223,-500.0,0.00016438,2]
[351438201,1738584633232,-485.95503907,0.00016438,2]
[351438202,1738584633243,-500.0,0.00016438,2]
[351438203,1738584633252,-500.0,0.00016438,2]
[351438204,1738584633262,-500.0,0.00016438,2]
[351438205,1738584633273,-500.0,0.00016438,2]
[351438206,1738584633282,-502.39670563,0.00016438,2]
[351438207,1738584633293,-502.19630505,0.00016438,2]
[351438208,1738584633302,-503.28028462,0.00016438,2]
[351438209,1738584633315,-500.0,0.00016438,2]
[351438210,1738584633325,-503.38929507,0.00016438,2]
[351438211,1738584633335,-500.0,0.00016438,2]
[351438212,1738584633345,-500.0,0.00016438,2]
[351438213,1738584633355,-502.42163637,0.00016438,2]
[351438214,1738584633365,-500.0,0.00016438,2]
[351438215,1738584633375,-500.0,0.00016438,2]
[351438216,1738584633386,-500.0,0.00016438,2]
[351438217,1738584633396,-502.10007293,0.00016438,2]
[351438218,1738584633407,-503.36946444,0.00016438,2]
[351438219,1738584633417,-500.0,0.00016438,2]
[351438220,1738584633428,-500.0,0.00016438,2]
[351438221,1738584633438,-502.63095403,0.00016438,2]
[351438222,1738584633448,-502.14953178,0.00016438,2]
[351438223,1738584633458,-500.0,0.00016438,2]
[351438224,1738584633468,-335.06547506,0.00016438,2]
[351438225,1738584633479,-506.47832471,0.00016438,2]
[351438226,1738584633489,-228.86513412,0.00016438,2]
[351438227,1738584633499,-520.97238367,0.00016438,2]
[351438228,1738584633509,-509.33034966,0.00016438,2]
[351438229,1738584633520,-500.0,0.00016438,2]
[351438230,1738584633530,-612.17241693,0.00016438,2]
[351438231,1738584633540,-500.0,0.00016438,2]
[351438232,1738584633550,-503.23107592,0.00016438,2]
[351438233,1738584633564,-500.0,0.00016438,2]
[351438234,1738584633575,-504.80633762,0.00016438,2]
[351438235,1738584633588,-500.0,0.00016438,2]
[351438236,1738584633598,-500.0,0.00016438,2]
[351438237,1738584633610,-500.0,0.00016438,2]
[351438238,1738584633619,-489.93980475,0.00016438,2]
[351438239,1738584633630,-515.63745862,0.00016438,2]
[351438240,1738584633640,-500.0,0.00016438,2]
[351438241,1738584633649,-501.56829494,0.00016438,2]
[351438242,1738584633659,-502.89392114,0.00016438,2]
[351438243,1738584633669,-500.0,0.00016438,2]
[351438244,1738584633679,-500.0,0.00016438,2]
[351438245,1738584633689,-531.07546369,0.00016438,2]
[351438246,1738584633699,-500.0,0.00016438,2]
[351438247,1738584633708,-151.0,0.00016438,2]
[351438248,1738584633718,-500.0,0.00016438,2]
[351438249,1738584633728,-500.0,0.00016438,2]
[351438250,1738584633737,-500.0,0.00016438,2]
[351438251,1738584633747,-500.0,0.00016438,2]
[351438252,1738584633756,-509.73284338,0.00016438,2]
[351438253,1738584633766,-503.3971516,0.00016438,2]
[351438254,1738584633775,-500.0,0.00016438,2]
[351438255,1738584633783,-423.73679617,0.00016438,2]
[351438256,1738584633792,-501.3717117,0.00016438,2]
[351438257,1738584633800,-500.0,0.00016438,2]
[351438258,1738584633812,-503.43709158,0.00016438,2]
[351438259,1738584633820,-506.86842485,0.00016438,2]
[351438260,1738584633828,-500.0,0.00016438,2]
[351438261,1738584633835,-500.0,0.00016438,2]
[351438262,1738584633842,-500.0,0.00016438,2]
[351438263,1738584633849,-500.0,0.00016438,2]
[351438264,1738584633857,-500.0,0.00016438,2]
[351438265,1738584633866,-504.98740706,0.00016438,2]
[351438266,1738584633876,-1004.09835109,0.00016438,2]
[351438267,1738584633885,-503.97641075,0.00016438,2]
[351438268,1738584633895,-500.0,0.00016438,2]
[351438269,1738584633905,-506.53357035,0.00016438,2]
[351438270,1738584633915,-500.0,0.00016438,2]
[351438271,1738584633925,-500.0,0.00016438,2]
[351438272,1738584633935,-500.0,0.00016438,2]
[351438273,1738584633945,-500.0,0.00016438,2]
[351438274,1738584633955,-504.31827618,0.00016438,2]
[351438275,1738584633964,-151.0,0.00016438,2]
[351438276,1738584633974,-500.0,0.00016438,2]
[351438277,1738584633984,-500.0,0.00016438,2]
[351438278,1738584633994,-500.0,0.00016438,2]
[351438279,1738584634003,-500.0,0.00016438,2]
[351438280,1738584634014,-509.57619342,0.00016438,2]
[351438281,1738584634023,-500.0,0.00016438,2]
[351438282,1738584634032,-501.97239853,0.00016438,2]
[351438283,1738584634042,-500.0,0.00016438,2]
[351438284,1738584634052,-500.0,0.00016438,2]
[351438285,1738584634065,-500.0,0.00016438,2]
[351438286,1738584634075,-500.0,0.00016438,2]
[351438287,1738584634084,-505.93156065,0.00016438,2]
[351438288,1738584634094,-151.0,0.00016438,2]
[351438289,1738584634104,-500.0,0.00016438,2]
[351438290,1738584634114,-500.0,0.00016438,2]
[351438291,1738584634124,-500.0,0.00016438,2]
[351438292,1738584634133,-500.0,0.00016438,2]
[351438293,1738584634143,-500.0,0.00016438,2]
[351438294,1738584634152,-500.0,0.00016438,2]
[351438295,1738584634161,-500.0,0.00016438,2]
[351438296,1738584634171,-500.0,0.00016438,2]
[351438297,1738584634181,-500.0,0.00016438,2]
[351438298,1738584634191,-151.0,0.00016438,2]
[351438299,1738584634200,-500.0,0.00016438,2]
[351438300,1738584634210,-500.0,0.00016438,2]
[351438301,1738584634220,-500.0,0.00016438,2]
[351438302,1738584634229,-506.18647945,0.00016438,2]
[351438303,1738584634239,-500.0,0.00016438,2]
[351438304,1738584634248,-500.0,0.00016438,2]
[351438305,1738584634258,-500.0,0.00016438,2]
[351438306,1738584634268,-500.0,0.00016438,2]
[351438307,1738584634277,-151.0,0.00016438,2]
[351438308,1738584634287,-500.0,0.00016438,2]
[351438309,1738584634297,-500.0,0.00016438,2]
[351438310,1738584634307,-151.604629,0.00016438,2]
[351438311,1738584634320,-500.0,0.00016438,2]
[351438312,1738584634330,-502.50655244,0.00016438,2]
[351438313,1738584634339,-500.0,0.00016438,2]
[351438314,1738584634349,-500.0,0.00016438,2]
[351438315,1738584634360,-500.0,0.00016438,2]
[351438316,1738584634370,-500.0,0.00016438,2]
[351438317,1738584634380,-500.0,0.00016438,2]
[351438318,1738584634390,-500.0,0.00016438,2]
[351438319,1738584634400,-151.0,0.00016438,2]
[351438320,1738584634409,-500.0,0.00016438,2]
[351438321,1738584634419,-500.0,0.00016438,2]
[351438322,1738584634429,-529.44037452,0.00016438,2]
[351438323,1738584634439,-500.0,0.00016438,2]
[351438324,1738584634449,-500.0,0.00016438,2]
[351438325,1738584634458,-500.0,0.00016438,2]
[351438326,1738584634467,-560.15034623,0.00016438,2]
[351438327,1738584634477,-475.30633217,0.00016438,2]
[351438328,1738584634487,-500.0,0.00016438,2]
[351438329,1738584634496,-313.95501091,0.00016438,2]
[351438330,1738584634506,-506.91672502,0.00016438,2]
[351438331,1738584634515,-500.0,0.00016438,2]
[351438332,1738584634525,-500.0,0.00016438,2]
[351438333,1738584634534,-505.04905034,0.00016438,2]
[351438334,1738584634544,-500.0,0.00016438,2]
[351438335,1738584634553,-266.82868389,0.00016438,2]
[351438336,1738584634566,-151.0,0.00016438,2]
[351438337,1738584634575,-151.0,0.00016438,2]
[351438338,1738584634586,-500.0,0.00016438,2]
[351438339,1738584634595,-505.09854308,0.00016438,2]
[351438340,1738584634605,-500.0,0.00016438,2]
[351438341,1738584634615,-151.0,0.00016438,2]
[351438342,1738584634624,-500.0,0.00016438,2]
[351438343,1738584634633,-151.0,0.00016438,2]
[351438344,1738584634642,-500.0,0.00016438,2]
[351438345,1738584634652,-500.0,0.00016438,2]
[351438346,1738584634663,-516.45699356,0.00016438,2]
[351438347,1738584634672,-500.0,0.00016438,2]
[351438348,1738584634682,-504.97581693,0.00016438,2]
[351438349,1738584634691,-523.69,0.00016438,2]
[351438350,1738584634700,-151.0,0.00016438,2]
[351438351,1738584634710,-500.0,0.00016438,2]
[351438352,1738584634719,-151.0,0.00016438,2]
[351438353,1738584634729,-154.890171,0.00016438,2]
[351438354,1738584634739,-500.0,0.00016438,2]
[351438355,1738584634748,-500.0,0.00016438,2]
[351438356,1738584634757,-500.0,0.00016438,2]
[351438357,1738584634767,-507.71872338,0.00016438,2]
[351438358,1738584634776,-151.0,0.00016438,2]
[351438359,1738584634905,-151.0,0.00016438,2]
[351438360,1738584634915,-518.66000485,0.00016438,2]
[351438361,1738584634924,-500.0,0.00016438,2]
[351438362,1738584634934,-198.72906467,0.00016438,2]
[351438363,1738584634943,-500.0,0.00016438,2]
[351438364,1738584634952,-1136.3,0.00016438,2]
[351438365,1738584634962,-500.0,0.00016438,2]
[351438366,1738584634971,-151.0,0.00016438,2]
[351438367,1738584634980,-151.0,0.00016438,2]
[351438368,1738584634990,-500.0,0.00016438,2]
[351438369,1738584635000,-151.0,0.00016438,2]
[351438370,1738584635010,-151.0,0.00016438,2]
[351438371,1738584635020,-151.0,0.00016438,2]
[351438372,1738584635029,-216.459389,0.00016438,2]
[351438373,1738584635038,-500.0,0.00016438,2]
[351438374,1738584635048,-176.29711112,0.00016438,2]
[351438375,1738584635058,-500.0,0.00016438,2]
[351438376,1738584635068,-427.26802878,0.00016438,2]
[351438377,1738584635078,-500.0,0.00016438,2]
[351438378,1738584635088,-500.0,0.00016438,2]
[351438379,1738584635097,-500.0,0.00016438,2]
[351438380,1738584635107,-500.0,0.00016438,2]
[351438381,1738584635117,-500.0,0.00016438,2]
[351438382,1738584635126,-594.2011352,0.00016438,2]
[351438383,1738584635136,-500.0,0.00016438,2]
[351438384,1738584635145,-500.0,0.00016438,2]
[351438385,1738584635155,-500.0,0.00016438,2]
[351438386,1738584635164,-151.0,0.00016438,2]
[351438387,1738584635175,-500.0,0.00016438,2]
[351438388,1738584635184,-500.0,0.00016438,2]
[351438389,1738584635194,-500.0,0.00016438,2]
[351438390,1738584635204,-500.0,0.00016438,2]
[351438391,1738584635213,-500.0,0.00016438,2]
[351438392,1738584635223,-500.0,0.00016438,2]
[351438393,1738584635233,-565.51365423,0.00016438,2]
[351438394,1738584635242,-500.0,0.00016438,2]
[351438395,1738584635251,-500.0,0.00016438,2]
[351438396,1738584635272,-390.39197445,0.00016438,2]
[351438397,1738584635283,-500.0,0.00016438,2]
[351438398,1738584635293,-500.0,0.00016438,2]
[351438399,1738584635303,-500.0,0.00016438,2]
[351438400,1738584635315,-502.80500871,0.00016438,2]
[351438401,1738584635325,-500.0,0.00016438,2]
[351438402,1738584635335,-502.59485842,0.00016438,2]
[351438403,1738584635345,-500.0,0.00016438,2]
[351438404,1738584635355,-500.0,0.00016438,2]
[351438405,1738584635365,-500.0,0.00016438,2]
[351438406,1738584635375,-500.0,0.00016438,2]
[351438407,1738584635384,-500.0,0.00016438,2]
[351438408,1738584635394,-500.0,0.00016438,2]
[351438409,1738584635404,-500.0,0.00016438,2]
[351438410,1738584635414,-500.0,0.00016438,2]
[351438411,1738584635424,-500.0,0.00016438,2]
[351438412,1738584635434,-500.0,0.00016438,2]
[351438413,1738584635444,-500.0,0.00016438,2]
[351438414,1738584635454,-500.0,0.00016438,2]
[351438415,1738584635464,-500.0,0.00016438,2]
[351438416,1738584635474,-500.0,0.00016438,2]
[351438417,1738584635484,-500.0,0.00016438,2]
[351438418,1738584635494,-500.0,0.00016438,2]
[351438419,1738584635504,-545.9061056,0.00016438,2]
[351438420,1738584635514,-500.0,0.00016438,2]
[351438421,1738584635523,-503.31339085,0.00016438,2]
[351438422,1738584635533,-500.0,0.00016438,2]
[351438423,1738584635543,-505.8262154,0.00016438,2]
[351438424,1738584635553,-500.0,0.00016438,2]
[351438425,1738584635565,-501.49681468,0.00016438,2]
[351438426,1738584635577,-500.0,0.00016438,2]
[351438427,1738584635587,-500.0,0.00016438,2]
[351438428,1738584635597,-500.82904676,0.00016438,2]
[351438429,1738584635608,-500.0,0.00016438,2]
[351438430,1738584635618,-500.0,0.00016438,2]
[351438431,1738584635627,-500.0,0.00016438,2]
[351438432,1738584635637,-500.0,0.00016438,2]
[351438433,1738584635647,-500.0,0.00016438,2]
[351438434,1738584635657,-500.0,0.00016438,2]
[351438435,1738584635667,-500.0,0.00016438,2]
[351438436,1738584635677,-500.0,0.00016438,2]
[351438437,1738584635686,-340.1928242,0.00016438,2]
[351438438,1738584635696,-500.0,0.00016438,2]
[351438439,1738584635705,-500.0,0.00016438,2]
[351438440,1738584635715,-151.0,0.00016438,2]
[351438441,1738584635725,-151.0,0.00016438,2]
[351438442,1738584635735,-151.0,0.00016438,2]
[351438443,1738584635744,-500.0,0.00016438,2]
[351438444,1738584635754,-500.0,0.00016438,2]
[351438445,1738584635764,-500.0,0.00016438,2]
[351438446,1738584635774,-570.09,0.00016438,2]
[351438447,1738584635783,-570.09,0.00016438,2]
[351438448,1738584635792,-500.0,0.00016438,2]
[351438449,1738584635802,-570.09,0.00016438,2]
[351438450,1738584635814,-570.09,0.00016438,2]
[351438451,1738584635824,-570.09,0.00016438,2]
[351438452,1738584635832,-500.0,0.00016438,2]
[351438453,1738584635842,-500.0,0.00016438,2]
[351438454,1738584635852,-500.0,0.00016438,2]
[351438455,1738584635862,-500.0,0.00016438,2]
[351438456,1738584635871,-500.0,0.00016438,2]
[351438457,1738584635881,-500.0,0.00016438,2]
[351438458,1738584635890,-500.0,0.00016438,2]
[351438459,1738584635900,-500.0,0.00016438,2]
[351438460,1738584635910,-500.0,0.00016438,2]
[351438461,1738584635919,-500.0,0.00016438,2]
[351438462,1738584635928,-500.0,0.00016438,2]
[351438463,1738584635938,-613.84,0.00016438,2]
[351438464,1738584635948,-151.0,0.00016438,2]
[351438465,1738584635957,-500.0,0.00016438,2]
[351438466,1738584635966,-151.0,0.00016438,2]
[351438467,1738584635976,-151.0,0.00016438,2]
[351438468,1738584635986,-501.05081765,0.00016438,2]
[351438469,1738584635996,-500.0,0.00016438,2]
[351438470,1738584636006,-151.0,0.00016438,2]
[351438471,1738584636016,-507.27029917,0.00016438,2]
[351438472,1738584636025,-500.0,0.00016438,2]
[351438473,1738584636035,-500.0,0.00016438,2]
[351438474,1738584636044,-500.0,0.00016438,2]
[351438475,1738584636054,-500.0,0.00016438,2]
[351438476,1738584636066,-500.0,0.00016438,2]
[351438477,1738584636075,-276.59790935,0.00016438,2]
[351438478,1738584636085,-500.0,0.00016438,2]
[351438479,1738584636095,-500.0,0.00016438,2]
[351438480,1738584636104,-501.58637863,0.00016438,2]
[351438481,1738584636114,-500.51308713,0.00016438,2]
[351438482,1738584636123,-500.0,0.00016438,2]
[351438483,1738584636133,-500.0,0.00016438,2]
[351438484,1738584636143,-500.0,0.00016438,2]
[351438485,1738584636153,-1782.95,0.00016438,2]
[351438486,1738584636163,-500.0,0.00016438,2]
[351438487,1738584636173,-500.0,0.00016438,2]
[351438488,1738584636183,-500.0,0.00016438,2]
[351438489,1738584636193,-500.0,0.00016438,2]
[351438490,1738584636204,-500.0,0.00016438,2]
[351438491,1738584636214,-500.0,0.00016438,2]
[351438492,1738584636223,-500.0,0.00016438,2]
[351438493,1738584636233,-500.0,0.00016438,2]
[351438494,1738584636243,-500.0,0.00016438,2]
[351438495,1738584636253,-500.0,0.00016438,2]
[351438496,1738584636263,-500.0,0.00016438,2]
[351438497,1738584636272,-500.0,0.00016438,2]
[351438498,1738584636282,-500.0,0.00016438,2]
[351438499,1738584636292,-528.12589544,0.00016438,2]
[351438500,1738584636302,-648.52568249,0.00016438,2]
[351438501,1738584636312,-293.426502,0.00016438,2]
[351438502,1738584636322,-500.0,0.00016438,2]
[351438503,1738584636333,-500.0,0.00016438,2]
[351438504,1738584636343,-500.0,0.00016438,2]
[351438505,1738584636353,-648.68178865,0.00016438,2]
[351438506,1738584636362,-644.49355381,0.00016438,2]
[351438507,1738584636372,-500.0,0.00016438,2]
[351438508,1738584636382,-500.0,0.00016438,2]
[351438509,1738584636392,-500.0,0.00016438,2]
[351438510,1738584636401,-500.0,0.00016438,2]
[351438511,1738584636410,-506.00447112,0.00016438,2]
[351438512,1738584636419,-500.0,0.00016438,2]
[351438513,1738584636428,-500.0,0.00016438,2]
[351438514,1738584636438,-500.0,0.00016438,2]
[351438515,1738584636448,-500.0,0.00016438,2]
[351438516,1738584636458,-500.0,0.00016438,2]
[351438517,1738584636468,-500.0,0.00016438,2]
[351438518,1738584636478,-164.50066402,0.00016438,2]
[351438519,1738584636488,-500.0,0.00016438,2]
[351438520,1738584636499,-500.0,0.00016438,2]
[351438521,1738584636509,-500.0,0.00016438,2]
[351438522,1738584636519,-500.0,0.00016438,2]
[351438523,1738584636529,-500.0,0.00016438,2]
[351438524,1738584636539,-501.84196291,0.00016438,2]
[351438525,1738584636548,-500.0,0.00016438,2]
[351438526,1738584636557,-500.0,0.00016438,2]
[351438527,1738584636571,-500.0,0.00016438,2]
[351438528,1738584636580,-500.0,0.00016438,2]
[351438529,1738584636593,-500.0,0.00016438,2]